[Event "African Games-chT 2019"]
[Site "Casablanca"]
[Date "2019.08.24"]
[Round "5.7"]
[White "Francis, Onkemetse"]
[Black "Nassr, Lina"]
[Result "1/2-1/2"]
[ECO "B23"]
[WhiteElo "1792"]
[BlackElo "1938"]
[Annotator "NA"]
[PlyCount "109"]
[EventDate "2019.08.24"]
[EventType "team-tourn"]
[EventCountry "MAR"]
[SourceTitle "playchess.com"]
[Source "ChessBase"]
[SourceQuality "1"]
[WhiteTeam "Botswana"]
[BlackTeam "Algeria"]
[WhiteTeamCountry "BOT"]
[BlackTeamCountry "ALG"]
[TimeControl "900+10"]

1. e4 {[%emt 0:00:00]} c5 {[%emt 0:00:00]} 2. Nc3 {[%emt 0:00:00]} e6 {[%emt 0:00:00]} 3. g3 {[%emt 0:00:00]} Nc6 {[%emt 0:00:00]} 4. Bg2 {[%emt 0:00:00]} g6 {[%emt 0:00:06]} 5. d3 {[%emt 0:00:01]} Bg7 {[%emt 0:00:01]} 6. Nge2 {[%emt 0:00:10]} Nge7 {[%emt 0:00:17]} 7. O-O {[%emt 0:00:06]} O-O {[%emt 0:00:12]} 8. Bg5 {[%emt 0:00:24]} h6 {[%emt 0:00:10]} 9. Be3 {[%emt 0:00:02]} Nd4 {[%emt 0:00:27]} 10. Qd2 {[%emt 0:00:47]} Kh7 {[%emt 0:00:06]} 11. Nd1 {[%emt 0:00:10]} d5 {[%emt 0:01:41]} 12. c3 {[%emt 0:00:26]} Nxe2+ {[%emt 0:00:04]} 13. Qxe2 {[%emt 0:00:01]} Qc7 {[%emt 0:01:14]} 14. d4 {[%emt 0:02:06]} cxd4 {[%emt 0:01:07]} 15. cxd4 {[%emt 0:01:15]} Bd7 {[%emt 0:01:05]} 16. Rc1 {[%emt 0:00:29]} Qb6 {[%emt 0:02:21]} 17. Qd2 {[%emt 0:00:21]} Bc6 {[%emt 0:01:23]} 18. e5 {[%emt 0:01:36]} Bb5 {[%emt 0:00:49]} 19. Re1 {[%emt 0:00:08]} Rfc8 {[%emt 0:00:45]} 20. Nc3 {[%emt 0:00:01]} Bd7 {[%emt 0:01:00]} 21. h4 {[%emt 0:00:20]} Nf5 {[%emt 0:00:49]} 22. Kh2 {[%emt 0:01:08]} h5 {[%emt 0:00:22]} 23. Rf1 {[%emt 0:01:21]} Rc4 {[%emt 0:01:09]} 24. Ne2 {[%emt 0:01:11]} Rac8 {[%emt 0:00:20]} 25. b3 {[%emt 0:00:31]} R4c7 {[%emt 0:00:43]} 26. Rxc7 {[%emt 0:00:04]} Rxc7 {[%emt 0:00:03]} 27. Rc1 {[%emt 0:00:16]} Bb5 {[%emt 0:00:10]} 28. Rxc7 {[%emt 0:00:30]} Qxc7 {[%emt 0:00:02]} 29. Nc3 {[%emt 0:00:19]} Ba6 {[%emt 0:00:16]} 30. Na4 {[%emt 0:00:28]} Nxe3 {[%emt 0:00:45]} 31. fxe3 {[%emt 0:00:03]} b6 {[%emt 0:00:15]} 32. Kg1 {[%emt 0:00:20]} Bh6 {[%emt 0:00:21]} 33. Kf2 {[%emt 0:00:12]} Qc6 {[%emt 0:00:17]} 34. Bf1 {[%emt 0:00:57]} Bxf1 {[%emt 0:00:21]} 35. Kxf1 {[%emt 0:00:02]} Qb5+ {[%emt 0:00:30]} 36. Kf2 {[%emt 0:00:05]} Qc6 {[%emt 0:00:55]} 37. Qc3 {[%emt 0:00:10]} Qxc3 {[%emt 0:00:23]} 38. Nxc3 {[%emt 0:00:01]} Bf8 {[%emt 0:00:16]} 39. Nb5 {[%emt 0:00:09]} a5 {[%emt 0:00:12]} 40. Nc3 {[%emt 0:00:07]} g5 {[%emt 0:00:17]} 41. Na4 {[%emt 0:00:37]} gxh4 {[%emt 0:00:03]} 42. gxh4 {[%emt 0:00:05]} Be7 {[%emt 0:00:20]} 43. Kg3 {[%emt 0:00:10]} Bd8 {[%emt 0:00:03]} 44. Nc3 {[%emt 0:00:12]} Kg6 {[%emt 0:00:05]} 45. Ne2 {[%emt 0:00:13]} Kf5 {[%emt 0:00:25]} 46. Nc3 {[%emt 0:01:06]} f6 {[%emt 0:00:10]} 47. exf6 {[%emt 0:00:07]} Bxf6 {[%emt 0:00:05]} 48. Na4 {[%emt 0:00:29]} Bd8 {[%emt 0:00:10]} 49. Nc3 {[%emt 0:00:06]} Bc7+ {[%emt 0:00:15]} 50. Kf3 {[%emt 0:00:17]} Bd8 {[%emt 0:00:03]} 51. Kg3 {[%emt 0:00:08]} Be7 {[%emt 0:00:11]} 52. Na4 {[%emt 0:00:14]} Bd6+ {[%emt 0:00:19]} 53. Kf3 {[%emt 0:00:09]} Bc7 {[%emt 0:00:01]} 54. Nc3 {[%emt 0:00:24]} Bd8 {[%emt 0:00:03]} 55. Kg3 1/2-1/2

[Event "African Games-chT 2019"]
[Site "Casablanca"]
[Date "2019.08.24"]
[Round "5.8"]
[White "Latreche, Sabrina"]
[Black "Gabatshwarwe Refilwe"]
[Result "1-0"]
[ECO "C44"]
[WhiteElo "2064"]
[BlackElo "1649"]
[Annotator "NA"]
[PlyCount "55"]
[EventDate "2019.08.24"]
[EventType "team-tourn"]
[EventCountry "MAR"]
[SourceTitle "playchess.com"]
[Source "ChessBase"]
[SourceQuality "1"]
[WhiteTeam "Algeria"]
[BlackTeam "Botswana"]
[WhiteTeamCountry "ALG"]
[BlackTeamCountry "BOT"]
[TimeControl "900+10"]

1. e4 {[%emt 0:00:00]} e5 {[%emt 0:00:00]} 2. Nf3 {[%emt 0:00:00]} Nc6 {[%emt 0:00:00]} 3. d4 {[%emt 0:00:00]} exd4 {[%emt 0:00:04]} 4. Bc4 {[%emt 0:00:00]} d6 {[%emt 0:01:09]} 5. Nxd4 {[%emt 0:00:02]} Bd7 {[%emt 0:01:42]} 6. Nc3 {[%emt 0:00:32]} Nf6 {[%emt 0:00:14]} 7. O-O {[%emt 0:01:26]} Be7 {[%emt 0:00:21]} 8. h3 {[%emt 0:00:22]} h6 {[%emt 0:00:18]} 9. Be3 {[%emt 0:00:33]} Ne5 {[%emt 0:00:20]} 10. Be2 {[%emt 0:00:11]} O-O {[%emt 0:01:01]} 11. f4 {[%emt 0:00:11]} Nc6 {[%emt 0:00:39]} 12. Bf3 {[%emt 0:00:02]} Nxd4 {[%emt 0:00:12]} 13. Bxd4 {[%emt 0:00:03]} Bc6 {[%emt 0:00:05]} 14. Qd3 {[%emt 0:02:03]} a6 {[%emt 0:00:42]} 15. Rad1 {[%emt 0:00:30]} Re8 {[%emt 0:00:42]} 16. e5 {[%emt 0:00:47]} Bxf3 {[%emt 0:02:06]} 17. Qxf3 {[%emt 0:00:03]} Nh7 {[%emt 0:00:43]} 18. Qxb7 {[%emt 0:01:50]} Qb8 {[%emt 0:02:32]} 19. Qc6 {[%emt 0:01:14]} dxe5 {[%emt 0:02:08]} 20. fxe5 {[%emt 0:00:02]} Bf8 {[%emt 0:00:19]} 21. Nd5 {[%emt 0:00:19]} Re6 {[%emt 0:00:58]} 22. Qxc7 {[%emt 0:00:06]} Qe8 {[%emt 0:00:31]} 23. Qc3 {[%emt 0:01:07]} Rc8 {[%emt 0:00:56]} 24. Qd3 {[%emt 0:00:12]} Qb5 {[%emt 0:00:38]} 25. Qxb5 {[%emt 0:01:08]} axb5 {[%emt 0:00:02]} 26. c3 {[%emt 0:00:05]} Bc5 {[%emt 0:00:29]} 27. b4 {[%emt 0:01:07]} Bxd4+ {[%emt 0:00:21]} 28. cxd4 {[%emt 0:00:01]} 1-0

[Event "African Games-chT 2019"]
[Site "Casablanca"]
[Date "2019.08.24"]
[Round "5.9"]
[White "Hamdouchi, Hicham"]
[Black "Makoto, Rodwell"]
[Result "1/2-1/2"]
[ECO "C76"]
[WhiteElo "2562"]
[BlackElo "2373"]
[Annotator "ChessBase"]
[PlyCount "130"]
[EventDate "2019.08.24"]
[EventType "team-tourn"]
[EventCountry "MAR"]
[SourceTitle "playchess.com"]
[Source "ChessBase"]
[SourceQuality "1"]
[WhiteTeam "Morocco"]
[BlackTeam "Zimbabwe"]
[WhiteTeamCountry "MAR"]
[BlackTeamCountry "ZIM"]
[TimeControl "900+10"]

1. e4 {[%emt 0:00:00]} e5 {[%emt 0:00:00]} 2. Nf3 {[%emt 0:00:00]} Nc6 {[%emt 0:00:00]} 3. Bb5 {[%emt 0:00:00]} g6 {[%emt 0:00:00]} 4. c3 {[%emt 0:00:00]} a6 {[%emt 0:00:00]} 5. Ba4 {[%emt 0:00:04]} d6 {[%emt 0:00:00]} 6. d4 {[%emt 0:00:04]} Bd7 {[%emt 0:00:00]} 7. O-O {[%emt 0:00:12]} Bg7 {[%emt 0:00:01]} 8. d5 {[%emt 0:00:35]} Nce7 {[%emt 0:00:03]} 9. c4 {[%emt 0:00:02]} h6 {[%emt 0:00:10]} 10. Nc3 {[%emt 0:00:10]} f5 {[%emt 0:00:07]} 11. Ne1 {[%emt 0:00:18]} Nf6 {[%emt 0:00:31]} 12. f3 {[%emt 0:00:03]} O-O {[%emt 0:00:02]} 13. Nd3 {[%emt 0:00:09]} Bc8 {[%emt 0:00:19]} 14. c5 {[%emt 0:00:09]} f4 {[%emt 0:02:06]} 15. Bd2 {[%emt 0:00:26]} g5 {[%emt 0:00:02]} 16. Kh1 {[%emt 0:00:04]} g4 {[%emt 0:00:08]} 17. Be1 {[%emt 0:00:07]} h5 {[%emt 0:00:06]} 18. Bf2 {[%emt 0:01:39]} Ng6 {[%emt 0:00:04]} 19. Bg1 {[%emt 0:00:33]} h4 {[%emt 0:00:36]} 20. Qd2 {[%emt 0:02:02]} Nh5 {[%emt 0:00:32]} 21. Ne2 {[%emt 0:01:00]} h3 {[%emt 0:02:15]} 22. gxh3 {[%emt 0:00:16]} gxf3 {[%emt 0:00:12]} 23. Rxf3 {[%emt 0:00:05]} Nh4 {[%emt 0:00:02]} 24. Raf1 {[%emt 0:00:18]} Qg5 {[%emt 0:00:16]} 25. Ne1 {[%emt 0:00:06]} Nxf3 {[%emt 0:00:25]} 26. Rxf3 {[%emt 0:00:09]} Rf6 {[%emt 0:00:24]} 27. cxd6 {[%emt 0:01:22]} cxd6 {[%emt 0:00:01]} 28. Bb6 {[%emt 0:00:02]} Rh6 {[%emt 0:00:19]} 29. Ng1 {[%emt 0:00:22]} Nf6 {[%emt 0:00:13]} 30. Bc2 {[%emt 0:00:32]} Bd7 {[%emt 0:00:20]} 31. Rc3 {[%emt 0:01:07]} Rc8 {[%emt 0:01:31]} 32. Bf2 {[%emt 0:01:08]} Qg6 {[%emt 0:00:29]} 33. Rxc8+ {[%emt 0:00:40]} Bxc8 {[%emt 0:00:01]} 34. Qd3 {[%emt 0:00:06]} Bd7 {[%emt 0:00:08]} 35. a4 {[%emt 0:00:46]} Bf8 {[%emt 0:00:29]} 36. b4 {[%emt 0:00:18]} Be7 {[%emt 0:00:05]} 37. b5 {[%emt 0:00:16]} axb5 {[%emt 0:00:01]} 38. axb5 {[%emt 0:00:00]} Nh7 {[%emt 0:00:51]} 39. b6 {[%emt 0:00:24]} Ng5 {[%emt 0:00:02]} 40. h4 {[%emt 0:00:05]} Nf7 {[%emt 0:00:00]} 41. Nef3 {[%emt 0:00:22]} Rh7 {[%emt 0:00:12]} 42. Qf1 {[%emt 0:00:13]} Rg7 {[%emt 0:00:08]} 43. Bd3 {[%emt 0:00:14]} Nh6 {[%emt 0:00:07]} 44. Nh3 {[%emt 0:00:55]} Bxh3 {[%emt 0:00:52]} 45. Qxh3 {[%emt 0:00:02]} Ng4 {[%emt 0:00:13]} 46. Bg1 {[%emt 0:00:08]} Ne3 {[%emt 0:00:41]} 47. Qe6+ {[%emt 0:01:15]} Kh7 {[%emt 0:00:46]} 48. Qxg6+ {[%emt 0:00:31]} Rxg6 {[%emt 0:00:09]} 49. h5 {[%emt 0:01:20]} Rg7 {[%emt 0:00:01]} 50. Nd2 {[%emt 0:00:13]} Bd8 {[%emt 0:00:24]} 51. Bxe3 {[%emt 0:01:09]} fxe3 {[%emt 0:00:02]} 52. Nc4 {[%emt 0:00:01]} Rf7 {[%emt 0:01:34]} 53. Kg2 {[%emt 0:00:23]} Rf2+ {[%emt 0:00:09]} 54. Kg3 {[%emt 0:00:01]} Bg5 {[%emt 0:01:43]} 55. Nxd6 {[%emt 0:00:16]} Bf4+ {[%emt 0:00:01]} 56. Kg4 {[%emt 0:00:01]} e2 {[%emt 0:00:07]} 57. Bxe2 {[%emt 0:00:02]} Rxe2 {[%emt 0:00:01]} 58. Nxb7 {[%emt 0:00:34]} Kg7 {[%emt 0:01:36]} 59. Nc5 {[%emt 0:00:38]} Rb2 {[%emt 0:00:23]} 60. Ne6+ {[%emt 0:00:10]} Kf6 {[%emt 0:00:01]} 61. Nxf4 {[%emt 0:00:02]} exf4 {[%emt 0:00:01]} 62. Kxf4 {[%emt 0:00:01]} Rf2+ {[%emt 0:01:08]} 63. Kg3 {[%emt 0:00:05]} Rb2 {[%emt 0:00:04]} 64. Kf4 {[%emt 0:00:02]} Rf2+ {[%emt 0:00:50]} 65. Kg3 {[%emt 0:00:01]} Rb2 {[%emt 0:00:01]} 1/2-1/2

[Event "African Games-chT 2019"]
[Site "Casablanca"]
[Date "2019.08.24"]
[Round "5.10"]
[White "Mushore, Emarald Takudzwa"]
[Black "Tissir, Mohamed"]
[Result "1-0"]
[ECO "B06"]
[WhiteElo "2198"]
[BlackElo "2379"]
[Annotator "NA"]
[PlyCount "67"]
[EventDate "2019.08.24"]
[EventType "team-tourn"]
[EventCountry "MAR"]
[SourceTitle "playchess.com"]
[Source "ChessBase"]
[SourceQuality "1"]
[WhiteTeam "Zimbabwe"]
[BlackTeam "Morocco"]
[WhiteTeamCountry "ZIM"]
[BlackTeamCountry "MAR"]
[TimeControl "900+10"]

1. e4 {[%emt 0:00:00]} d6 {[%emt 0:00:00]} 2. d4 {[%emt 0:00:00]} g6 {[%emt 0:00:00]} 3. Nc3 {[%emt 0:00:00]} Bg7 {[%emt 0:00:00]} 4. Be3 {[%emt 0:00:00]} Nd7 {[%emt 0:00:00]} 5. Qd2 {[%emt 0:00:02]} a6 {[%emt 0:00:06]} 6. f3 {[%emt 0:00:05]} Ngf6 {[%emt 0:01:19]} 7. Nge2 {[%emt 0:00:04]} b5 {[%emt 0:00:22]} 8. Nf4 {[%emt 0:00:19]} c6 {[%emt 0:00:13]} 9. g4 {[%emt 0:00:23]} e5 {[%emt 0:00:05]} 10. Nfe2 {[%emt 0:00:01]} h5 {[%emt 0:00:07]} 11. g5 {[%emt 0:00:28]} Nh7 {[%emt 0:00:01]} 12. h4 {[%emt 0:00:07]} O-O {[%emt 0:00:24]} 13. f4 {[%emt 0:00:05]} exf4 {[%emt 0:01:09]} 14. Nxf4 {[%emt 0:00:14]} Re8 {[%emt 0:00:15]} 15. Bg2 {[%emt 0:00:04]} c5 {[%emt 0:01:00]} 16. O-O-O {[%emt 0:00:12]} c4 {[%emt 0:00:37]} 17. e5 {[%emt 0:00:20]} Rb8 {[%emt 0:00:23]} 18. e6 {[%emt 0:00:13]} fxe6 {[%emt 0:00:14]} 19. Nxg6 {[%emt 0:00:02]} b4 {[%emt 0:00:11]} 20. Ne4 {[%emt 0:00:02]} c3 {[%emt 0:00:01]} 21. Qe2 {[%emt 0:00:06]} Qa5 {[%emt 0:00:08]} 22. Kb1 {[%emt 0:00:22]} Qc7 {[%emt 0:02:01]} 23. Bf4 {[%emt 0:01:13]} Rb6 {[%emt 0:00:19]} 24. Rhf1 {[%emt 0:01:24]} Bb7 {[%emt 0:00:08]} 25. Nxd6 {[%emt 0:00:36]} b3 {[%emt 0:00:10]} 26. axb3 {[%emt 0:00:12]} Rxd6 {[%emt 0:00:08]} 27. Bxb7 {[%emt 0:00:14]} cxb2 {[%emt 0:00:15]} 28. Bxd6 {[%emt 0:00:21]} Qxd6 {[%emt 0:00:01]} 29. Qxa6 {[%emt 0:01:30]} Qb4 {[%emt 0:00:36]} 30. Bc6 {[%emt 0:01:51]} Qd6 {[%emt 0:00:30]} 31. Bb5 {[%emt 0:00:40]} Qc7 {[%emt 0:00:57]} 32. Qc6 {[%emt 0:00:38]} Qa7 {[%emt 0:00:00]} 33. Ba4 {[%emt 0:00:01]} Nhf8 {[%emt 0:08:09]} 34. Nxf8 {[%emt 0:00:32]} 1-0

[Event "African Games-chT 2019"]
[Site "Casablanca"]
[Date "2019.08.24"]
[Round "5.11"]
[White "Mayar ElIdrissi, Firdaous"]
[Black "Shaba, Linda"]
[Result "1-0"]
[ECO "C01"]
[WhiteElo "1760"]
[BlackElo "1615"]
[Annotator "NA"]
[PlyCount "61"]
[EventDate "2019.08.24"]
[EventType "team-tourn"]
[EventCountry "MAR"]
[SourceTitle "playchess.com"]
[Source "ChessBase"]
[SourceQuality "1"]
[WhiteTeam "Morocco"]
[BlackTeam "Zimbabwe"]
[WhiteTeamCountry "MAR"]
[BlackTeamCountry "ZIM"]
[TimeControl "900+10"]

1. e4 e6 2. d4 d5 3. exd5 exd5 4. Nf3 Nf6 5. Be2 Bg4 6. Nc3 Be7 7. Be3 c6 8. Qd2 Nbd7 9. h3 Bh5 10. g4 Bg6 11. O-O-O Ne4 12. Nxe4 Bxe4 13. Rhg1 Qb6 14. Ng5 Bxg5 15. Bxg5 f6 16. Bf4 O-O 17. f3 Bg6 18. h4 a5 19. h5 Bf7 20. Bd3 Qb4 21. Qh2 Rfe8 22. g5 fxg5 23. Bxg5 Be6 24. Bh6 Re7 25. Qg3 Nf6 26. a3 Qb6 27. Qg5 Ne8 28. Qxe7 Bf7 29. Bxg7 Nxg7 30. h6 Re8 31. Rxg7+ 1-0

[Event "African Games-chT 2019"]
[Site "Casablanca"]
[Date "2019.08.24"]
[Round "5.12"]
[White "Wakuruwarewa, Colletta"]
[Black "Rania, Sbai"]
[Result "1-0"]
[ECO "C54"]
[WhiteElo "1587"]
[BlackElo "1853"]
[Annotator "NA"]
[PlyCount "93"]
[EventDate "2019.08.24"]
[EventType "team-tourn"]
[EventCountry "MAR"]
[SourceTitle "playchess.com"]
[Source "ChessBase"]
[SourceQuality "1"]
[WhiteTeam "Zimbabwe"]
[BlackTeam "Morocco"]
[WhiteTeamCountry "ZIM"]
[BlackTeamCountry "MAR"]
[TimeControl "900+10"]

1. e4 {[%emt 0:00:00]} e5 {[%emt 0:00:00]} 2. Nf3 {[%emt 0:00:00]} Nc6 {[%emt 0:00:00]} 3. Bc4 {[%emt 0:00:04]} Bc5 {[%emt 0:00:00]} 4. c3 {[%emt 0:00:27]} Nf6 {[%emt 0:00:00]} 5. d3 {[%emt 0:00:11]} d6 {[%emt 0:00:14]} 6. h3 {[%emt 0:00:01]} h6 {[%emt 0:00:37]} 7. O-O {[%emt 0:00:03]} O-O {[%emt 0:00:47]} 8. Re1 {[%emt 0:00:17]} a6 {[%emt 0:01:24]} 9. Be3 {[%emt 0:00:29]} Ba7 {[%emt 0:01:11]} 10. Nbd2 {[%emt 0:00:21]} Na5 {[%emt 0:00:16]} 11. Bb3 {[%emt 0:00:37]} Nxb3 {[%emt 0:00:17]} 12. Nxb3 {[%emt 0:00:07]} Be6 {[%emt 0:01:15]} 13. Nbd2 {[%emt 0:01:17]} Nh7 {[%emt 0:00:41]} 14. d4 {[%emt 0:00:28]} f6 {[%emt 0:01:50]} 15. Qc2 {[%emt 0:01:44]} Qe8 {[%emt 0:00:34]} 16. d5 {[%emt 0:00:24]} Bd7 {[%emt 0:00:12]} 17. Nf1 {[%emt 0:01:16]} Qg6 {[%emt 0:00:42]} 18. Ng3 {[%emt 0:00:15]} f5 {[%emt 0:02:31]} 19. Nh4 {[%emt 0:00:13]} Qf7 {[%emt 0:00:28]} 20. Nhxf5 {[%emt 0:00:07]} Nf6 {[%emt 0:01:13]} 21. Bxh6 {[%emt 0:00:21]} Nh5 {[%emt 0:00:42]} 22. Be3 {[%emt 0:00:25]} Nxg3 {[%emt 0:00:54]} 23. Nxg3 {[%emt 0:00:05]} Qg6 {[%emt 0:00:29]} 24. Bxa7 {[%emt 0:01:16]} Rxa7 {[%emt 0:00:01]} 25. Re3 {[%emt 0:00:12]} Raa8 {[%emt 0:00:03]} 26. Qe2 Rf4 {[%emt 0:00:34]} 27. Nh5 {[%emt 0:00:54]} Rh4 {[%emt 0:00:20]} 28. Nxg7 {[%emt 0:02:04]} Bxh3 {[%emt 0:01:03]} 29. Rg3 {[%emt 0:00:22]} Rg4 {[%emt 0:00:14]} 30. Rxg4 {[%emt 0:00:13]} Bxg4 {[%emt 0:00:11]} 31. f3 {[%emt 0:00:02]} Bxf3 {[%emt 0:00:22]} 32. Qxf3 {[%emt 0:00:05]} Qxg7 {[%emt 0:00:13]} 33. Rf1 {[%emt 0:00:05]} Rf8 {[%emt 0:00:17]} 34. Qxf8+ {[%emt 0:00:10]} Qxf8 {[%emt 0:00:02]} 35. Rxf8+ {[%emt 0:00:01]} Kxf8 {[%emt 0:00:01]} 36. Kh2 {[%emt 0:00:03]} Kg7 {[%emt 0:00:09]} 37. Kg3 {[%emt 0:00:02]} c6 {[%emt 0:00:57]} 38. c4 {[%emt 0:00:01]} c5 {[%emt 0:00:18]} 39. Kg4 {[%emt 0:00:02]} Kg6 {[%emt 0:00:01]} 40. a4 {[%emt 0:00:21]} b6 {[%emt 0:00:24]} 41. b3 {[%emt 0:00:05]} a5 {[%emt 0:00:08]} 42. g3 {[%emt 0:00:07]} Kf6 {[%emt 0:00:13]} 43. Kh5 {[%emt 0:00:04]} Kf7 {[%emt 0:00:01]} 44. Kh6 {[%emt 0:00:03]} Kf6 {[%emt 0:00:02]} 45. g4 {[%emt 0:00:02]} Kf7 {[%emt 0:00:02]} 46. g5 {[%emt 0:00:04]} Kf8 {[%emt 0:00:14]} 47. Kh7 {[%emt 0:00:03]} 1-0

[Event "African Games-chT 2019"]
[Site "Casablanca"]
[Date "2019.08.24"]
[Round "5.13"]
[White "Aderito, Pedro"]
[Black "Chumfwa, Stanley"]
[Result "1-0"]
[ECO "E68"]
[WhiteElo "2301"]
[BlackElo "2317"]
[Annotator "NA"]
[PlyCount "69"]
[EventDate "2019.08.24"]
[EventType "team-tourn"]
[EventCountry "MAR"]
[SourceTitle "playchess.com"]
[Source "ChessBase"]
[SourceQuality "1"]
[WhiteTeam "Angola"]
[BlackTeam "Zambia"]
[WhiteTeamCountry "ANG"]
[BlackTeamCountry "ZAM"]
[TimeControl "900+10"]

1. Nf3 {[%emt 0:00:00]} Nf6 {[%emt 0:00:00]} 2. g3 {[%emt 0:00:00]} g6 {[%emt 0:00:00]} 3. Bg2 {[%emt 0:00:00]} Bg7 {[%emt 0:00:00]} 4. O-O {[%emt 0:00:03]} O-O {[%emt 0:00:00]} 5. d4 {[%emt 0:00:06]} d6 {[%emt 0:00:00]} 6. c4 {[%emt 0:00:03]} Nbd7 {[%emt 0:00:02]} 7. Nc3 {[%emt 0:00:02]} e5 {[%emt 0:00:02]} 8. e4 {[%emt 0:00:03]} exd4 {[%emt 0:00:06]} 9. Nxd4 {[%emt 0:00:03]} Nc5 {[%emt 0:00:03]} 10. h3 {[%emt 0:00:04]} Re8 {[%emt 0:00:06]} 11. Re1 {[%emt 0:00:02]} Bd7 {[%emt 0:00:04]} 12. a3 {[%emt 0:00:14]} a5 {[%emt 0:00:15]} 13. b3 {[%emt 0:00:12]} Qc8 {[%emt 0:01:01]} 14. Kh2 {[%emt 0:00:07]} h5 {[%emt 0:00:49]} 15. Rb1 {[%emt 0:00:25]} h4 {[%emt 0:00:28]} 16. g4 {[%emt 0:00:18]} Nh7 {[%emt 0:00:08]} 17. Be3 {[%emt 0:01:20]} Qd8 {[%emt 0:00:49]} 18. f4 {[%emt 0:00:17]} g5 {[%emt 0:00:27]} 19. Qd2 {[%emt 0:01:32]} gxf4 {[%emt 0:02:16]} 20. Bxf4 {[%emt 0:00:02]} Ne6 {[%emt 0:03:14]} 21. Be3 {[%emt 0:03:08]} Be5+ {[%emt 0:01:03]} 22. Kh1 {[%emt 0:00:02]} Nxd4 {[%emt 0:00:39]} 23. Bxd4 {[%emt 0:00:04]} Be6 {[%emt 0:00:15]} 24. Rf1 {[%emt 0:01:11]} Qg5 {[%emt 0:01:14]} 25. Be3 {[%emt 0:00:06]} Qg7 {[%emt 0:00:01]} 26. Nd5 {[%emt 0:00:10]} Bxd5 {[%emt 0:00:09]} 27. cxd5 {[%emt 0:00:01]} c5 {[%emt 0:00:31]} 28. dxc6 {[%emt 0:00:25]} bxc6 {[%emt 0:00:02]} 29. Rf5 {[%emt 0:00:23]} c5 {[%emt 0:01:14]} 30. Rbf1 {[%emt 0:00:19]} Re7 {[%emt 0:00:48]} 31. Bg5 {[%emt 0:02:43]} Bc3 {[%emt 0:00:38]} 32. Qd5 {[%emt 0:00:13]} Rae8 {[%emt 0:01:23]} 33. Bxe7 Rxe7 34. Qxd6 {[%emt 0:00:11]} Re6 {[%emt 0:00:33]} 35. Qxc5 {[%emt 0:00:05]} 1-0

[Event "African Games-chT 2019"]
[Site "Casablanca"]
[Date "2019.08.24"]
[Round "5.14"]
[White "Kayonde, Andrew"]
[Black "Silva, David"]
[Result "1/2-1/2"]
[ECO "A45"]
[WhiteElo "2384"]
[BlackElo "2239"]
[Annotator "NA"]
[PlyCount "101"]
[EventDate "2019.08.24"]
[EventType "team-tourn"]
[EventCountry "MAR"]
[SourceTitle "playchess.com"]
[Source "ChessBase"]
[SourceQuality "1"]
[WhiteTeam "Zambia"]
[BlackTeam "Angola"]
[WhiteTeamCountry "ZAM"]
[BlackTeamCountry "ANG"]
[TimeControl "900+10"]

1. d4 {[%emt 0:00:00]} Nf6 {[%emt 0:00:00]} 2. Bg5 {[%emt 0:00:00]} d5 {[%emt 0:00:03]} 3. Bxf6 {[%emt 0:00:02]} exf6 {[%emt 0:00:03]} 4. e3 {[%emt 0:00:02]} c6 {[%emt 0:00:01]} 5. c4 {[%emt 0:00:05]} Bb4+ {[%emt 0:00:07]} 6. Nc3 {[%emt 0:00:08]} dxc4 {[%emt 0:00:03]} 7. Bxc4 {[%emt 0:00:04]} O-O {[%emt 0:00:03]} 8. Qc2 {[%emt 0:00:35]} f5 {[%emt 0:00:23]} 9. Nge2 {[%emt 0:00:04]} Qf6 {[%emt 0:00:02]} 10. O-O {[%emt 0:00:50]} Bd6 {[%emt 0:00:14]} 11. g3 {[%emt 0:01:01]} a5 {[%emt 0:00:20]} 12. Bd3 {[%emt 0:00:19]} Na6 {[%emt 0:00:12]} 13. a3 {[%emt 0:00:01]} g6 {[%emt 0:00:54]} 14. Rad1 {[%emt 0:00:26]} Re8 {[%emt 0:00:10]} 15. Rfe1 {[%emt 0:00:30]} Bf8 {[%emt 0:00:03]} 16. d5 {[%emt 0:00:22]} Nc5 {[%emt 0:00:07]} 17. dxc6 {[%emt 0:00:09]} bxc6 {[%emt 0:00:08]} 18. Bc4 {[%emt 0:00:01]} Rb8 {[%emt 0:00:07]} 19. Nd4 {[%emt 0:00:15]} h5 {[%emt 0:00:20]} 20. h4 {[%emt 0:00:24]} f4 {[%emt 0:00:12]} 21. exf4 {[%emt 0:00:35]} Rxe1+ {[%emt 0:00:44]} 22. Rxe1 {[%emt 0:00:01]} Bg4 {[%emt 0:00:54]} 23. Nb3 {[%emt 0:00:35]} Bf5 {[%emt 0:00:04]} 24. Qd1 {[%emt 0:00:04]} Nxb3 {[%emt 0:00:13]} 25. Bxb3 {[%emt 0:00:02]} Bc5 {[%emt 0:00:08]} 26. Na4 {[%emt 0:03:13]} Ba7 {[%emt 0:00:38]} 27. Bc2 {[%emt 0:00:27]} Bg4 {[%emt 0:00:21]} 28. Qd2 {[%emt 0:00:02]} Rd8 {[%emt 0:00:12]} 29. Qxa5 {[%emt 0:00:04]} Qd4 {[%emt 0:00:03]} 30. Re3 {[%emt 0:00:31]} Kg7 {[%emt 0:02:58]} 31. Qc3 {[%emt 0:01:42]} Qxc3 {[%emt 0:00:03]} 32. Rxc3 {[%emt 0:00:02]} Rd2 {[%emt 0:00:51]} 33. Nc5 {[%emt 0:00:03]} Bb6 {[%emt 0:01:57]} 34. b4 {[%emt 0:00:03]} Bd8 {[%emt 0:00:31]} 35. Be4 {[%emt 0:00:22]} Bf6 {[%emt 0:00:22]} 36. Rd3 {[%emt 0:00:20]} Ra2 {[%emt 0:00:04]} 37. Bxc6 {[%emt 0:01:18]} Bb2 {[%emt 0:00:06]} 38. a4 {[%emt 0:00:27]} Ba3 {[%emt 0:00:11]} 39. Na6 {[%emt 0:01:39]} Be2 {[%emt 0:00:10]} 40. Rd7 Bxa6 {[%emt 0:00:06]} 41. Bd5 {[%emt 0:02:49]} Ra1+ {[%emt 0:00:04]} 42. Kh2 {[%emt 0:00:04]} Bxb4 {[%emt 0:00:30]} 43. Rxf7+ {[%emt 0:00:02]} Kh8 {[%emt 0:00:20]} 44. f5 {[%emt 0:01:14]} gxf5 {[%emt 0:01:09]} 45. Rxf5 {[%emt 0:00:03]} Be2 {[%emt 0:00:02]} 46. Bf3 {[%emt 0:00:31]} Bxf3 {[%emt 0:00:32]} 47. Rxf3 {[%emt 0:00:01]} Kg7 {[%emt 0:00:04]} 48. Rf5 {[%emt 0:00:06]} Kg6 {[%emt 0:00:04]} 49. Rg5+ {[%emt 0:00:03]} Kh6 {[%emt 0:00:01]} 50. f3 {[%emt 0:00:19]} Rxa4 {[%emt 0:00:10]} 51. g4 {[%emt 0:00:05]} 1/2-1/2